bitfinex-derivatives/quotes_BTCF0:USTF0_20250719
["timestamp","ask_amount","ask_price","bid_price","bid_amount"]
[1752887026503,0.5395555,117830.0,117820.0,0.8310301]
[1752887026711,0.35235262,117830.0,117820.0,1.01823298]
[1752887027406,0.35235262,117830.0,117820.0,0.5304301]
[1752887027606,0.35235262,117830.0,117820.0,1.01831298]
[1752887028008,0.35235262,117830.0,117820.0,0.71763298]
[1752887028509,0.35235262,117830.0,117820.0,1.01823298]
[1752887028705,0.42832626,117830.0,117820.0,0.71763298]
[1752887029008,0.42832626,117830.0,117820.0,1.01815298]
[1752887030811,0.42832626,117830.0,117820.0,0.8309501]
[1752887031010,0.42832626,117830.0,117820.0,1.01815298]
[1752887031906,0.42832626,117830.0,117820.0,1.01811298]
[1752887031907,0.59794186,117830.0,117820.0,1.01811298]
[1752887032209,0.42832626,117830.0,117820.0,1.01811298]
[1752887032410,0.59794186,117830.0,117820.0,1.01811298]
[1752887032911,0.78514474,117830.0,117820.0,1.01811298]
[1752887033311,0.61552914,117830.0,117820.0,1.01811298]
[1752887034219,0.61552914,117830.0,117820.0,0.8309101]
[1752887034415,0.61552914,117830.0,117820.0,1.01811298]
[1752887034713,0.78514474,117830.0,117820.0,1.01811298]
[1752887034908,0.78514474,117830.0,117820.0,0.8309101]
[1752887035109,0.78514474,117830.0,117820.0,0.8308701]
[1752887035915,0.78514474,117830.0,117820.0,0.5304301]
[1752887036215,0.42527,117820.0,117810.0,0.9104496]
[1752887036415,0.68847041,117820.0,117810.0,1.2109296]
[1752887036609,0.50126753,117820.0,117810.0,1.2109296]
[1752887036810,0.68847041,117820.0,117810.0,1.2109296]
[1752887037110,0.68847041,117820.0,117810.0,0.9157296]
[1752887037315,0.68847041,117820.0,117810.0,0.6152496]
[1752887037614,0.68847041,117820.0,117810.0,0.9156496]
[1752887038111,0.61247288,117820.0,117810.0,0.9176496]
[1752887038311,0.68847041,117820.0,117810.0,0.5568496]
[1752887039010,0.68847041,117820.0,117810.0,0.2564496]
[1752887039216,0.68847041,117820.0,117810.0,0.5573296]
[1752887039412,0.68847041,117820.0,117810.0,0.2564496]
[1752887039613,0.68847041,117820.0,117810.0,0.5572896]
[1752887039912,1.14303288,117820.0,117810.0,0.002]
[1752887040218,0.95583,117820.0,117810.0,0.1716444]
[1752887040520,1.14303288,117820.0,117810.0,0.1716444]
[1752887040712,0.97327288,117820.0,117810.0,0.1716444]
[1752887040906,1.0798257,117820.0,117810.0,0.1716444]
[1752887042117,0.97327288,117820.0,117810.0,0.1716444]
[1752887042318,0.78607,117820.0,117810.0,0.1716444]
[1752887042616,0.97327288,117820.0,117810.0,0.1716444]
[1752887042818,0.78607,117820.0,117810.0,0.1716444]
[1752887043017,0.97327288,117820.0,117810.0,0.1716444]
[1752887044313,0.86200861,117820.0,117810.0,0.1716444]
[1752887044717,1.04921149,117820.0,117810.0,0.1716444]
[1752887045121,0.86200861,117820.0,117810.0,0.1716444]
[1752887045421,1.04921149,117820.0,117810.0,0.1716444]
[1752887045617,0.68841149,117820.0,117810.0,0.1716444]
[1752887045822,0.86200861,117820.0,117810.0,0.1716444]
[1752887046011,0.68841149,117820.0,117810.0,0.5324444]
[1752887046816,0.50120861,117820.0,117810.0,0.5324444]
[1752887047117,0.68841149,117820.0,117810.0,0.5324444]
[1752887047421,0.61247288,117820.0,117810.0,0.5324444]
[1752887047720,0.7190257,117820.0,117810.0,0.5324444]
[1752887048222,0.73550633,117820.0,117810.0,0.46366335]
[1752887048421,0.70485681,117820.0,117810.0,0.46366335]
[1752887049211,1.04917618,117820.0,117810.0,0.10286335]
[1752887053121,0.3129344,117810.0,117800.0,0.57287048]
[1752887053428,0.53183722,117810.0,117800.0,0.74252928]
[1752887053921,0.53183722,117810.0,117800.0,0.5553264]
[1752887054226,0.53183722,117810.0,117800.0,0.74252928]
[1752887054825,0.53183722,117810.0,117800.0,0.74532928]
[1752887055220,0.53183722,117810.0,117800.0,0.75132928]
[1752887055422,0.53183722,117810.0,117800.0,0.5641264]
[1752887055719,0.53183722,117810.0,117800.0,0.75132928]
[1752887057225,0.36219282,117810.0,117800.0,1.11212928]
[1752887057428,0.53183712,117810.0,117800.0,1.11212928]
[1752887058025,0.4252843,117810.0,117800.0,1.11212928]
[1752887058226,0.15532,117810.0,117800.0,1.11212928]
[1752887058622,0.25564,117810.0,117800.0,1.11212928]
[1752887059428,0.4252843,117810.0,117800.0,0.9249264]
[1752887059727,0.4252843,117810.0,117800.0,1.11212928]
[1752887059927,0.4252843,117810.0,117800.0,0.9249264]
[1752887060128,0.4252843,117810.0,117800.0,0.80848928]
[1752887060329,0.4252843,117810.0,117800.0,1.11176928]
[1752887060524,0.4252843,117810.0,117800.0,0.75096928]
[1752887060821,0.61248718,117810.0,117800.0,0.75096928]
[1752887061022,0.61248718,117810.0,117800.0,0.2604864]
[1752887061227,0.76483211,117810.0,117800.0,0.5637264]
[1752887061924,0.76483211,117810.0,117800.0,0.2604864]
[1752887062229,0.76483211,117810.0,117800.0,0.5636864]
[1752887062922,0.57762923,117810.0,117800.0,0.5636864]
[1752887063126,0.76483211,117810.0,117800.0,0.75088928]
[1752887063532,0.61248718,117810.0,117800.0,0.5636864]
[1752887063831,0.68844894,117810.0,117800.0,0.5635664]
[1752887064032,0.61248718,117810.0,117800.0,0.5635664]
[1752887064330,0.61248718,117810.0,117800.0,0.5634864]
[1752887064524,0.68846243,117810.0,117800.0,0.5634864]
[1752887065628,0.50125955,117810.0,117800.0,0.5646464]
[1752887065829,0.68846243,117810.0,117800.0,0.5646464]
[1752887066127,0.68846243,117810.0,117800.0,0.2604864]
[1752887066532,0.68846243,117810.0,117800.0,0.5646864]
[1752887066730,0.50125955,117810.0,117800.0,0.5646864]
[1752887066931,0.68846243,117810.0,117800.0,0.5646864]
[1752887067832,0.61248718,117810.0,117800.0,0.5646464]
[1752887069039,0.6126146,117810.0,117800.0,0.7519767]
[1752887069438,0.7189447,117810.0,117800.0,0.7519767]
[1752887069638,0.7189447,117810.0,117800.0,0.4478167]
[1752887069938,0.5316144,117810.0,117800.0,0.7520167]
[1752887070138,0.7189447,117810.0,117800.0,0.7520167]
[1752887070538,0.7189447,117810.0,117800.0,0.73808441]
[1752887070835,0.7189447,117810.0,117800.0,0.5646864]
[1752887071035,0.7189447,117810.0,117800.0,0.7520167]
[1752887071237,0.906275,117810.0,117800.0,0.2604864]
[1752887071534,0.5316144,117810.0,117800.0,0.2604864]
[1752887071749,0.7189447,117810.0,117800.0,0.2604864]
[1752887072141,0.7189447,117810.0,117800.0,0.1756588]
[1752887072341,0.906275,117810.0,117800.0,0.006]
[1752887072541,1.267075,117810.0,117800.0,0.00079848]
[1752887072746,1.1607449,117810.0,117800.0,0.30783848]
[1752887073345,0.4018385,117800.0,117790.0,0.1696662]
[1752887073540,1.26810969,117800.0,117790.0,0.4767062]
[1752887073946,1.26810969,117800.0,117780.0,0.2121023]
[1752887073947,0.4261829,117790.0,117780.0,0.2121023]
[1752887074148,0.4261973,117780.0,117770.0,0.23521706]
[1752887074348,0.87691436,117780.0,117770.0,0.4766918]
[1752887074548,0.4262117,117770.0,117760.0,0.5623204]
[1752887074744,0.6743659,117770.0,117760.0,0.5623204]
[1752887074948,0.61367783,117770.0,117760.0,0.2545604]
[1752887075149,0.67447308,117770.0,117760.0,0.5623204]
[1752887075751,0.4262117,117770.0,117760.0,0.5623204]
[1752887076151,0.48698532,117770.0,117760.0,0.5623204]
[1752887076359,0.67445145,117770.0,117760.0,0.5623204]
[1752887076750,0.61367783,117770.0,117760.0,0.5623204]
[1752887076949,0.56978747,117770.0,117760.0,0.5623204]
[1752887077253,0.57078747,117770.0,117760.0,0.5623204]
[1752887077449,0.74293769,117770.0,117760.0,0.5623204]
[1752887077844,0.74593769,117770.0,117760.0,0.5633204]
[1752887078044,0.49773101,117770.0,117760.0,0.5633204]
[1752887078551,0.68519714,117770.0,117760.0,0.5633204]
[1752887078751,0.49773101,117770.0,117760.0,0.5633204]
[1752887079360,0.68519714,117770.0,117760.0,0.5633204]
[1752887079561,0.49773101,117770.0,117760.0,0.5633204]
[1752887079754,0.68519714,117770.0,117760.0,0.5633204]
[1752887079955,0.32802931,117770.0,117760.0,1.11158653]
[1752887080154,0.38876986,117770.0,117760.0,1.11158653]
[1752887080455,0.38876986,117770.0,117760.0,0.9241204]
[1752887080656,0.38876986,117770.0,117760.0,1.11158653]
[1752887080852,0.38876986,117770.0,117760.0,0.9241204]
[1752887081058,0.49773121,117770.0,117760.0,0.9241204]
[1752887081357,0.38870658,117770.0,117760.0,1.11158653]
[1752887082155,0.32802931,117770.0,117760.0,1.09226117]
[1752887082366,0.38868075,117770.0,117760.0,0.90479504]
[1752887082554,0.38868075,117770.0,117760.0,1.09226117]
[1752887083157,0.32802931,117770.0,117760.0,1.09226117]
[1752887083559,0.38868075,117770.0,117760.0,0.78450117]
[1752887083756,0.38868075,117770.0,117760.0,1.09366117]
[1752887083952,0.20290931,117770.0,117760.0,1.09366117]
[1752887084157,0.07151931,117770.0,117760.0,1.09366117]
[1752887084457,0.004,117770.0,117760.0,1.09366117]
[1752887084764,0.08828,117770.0,117760.0,1.09366117]
[1752887085157,0.13539,117770.0,117760.0,1.09366117]
[1752887085661,0.15972,117770.0,117760.0,1.09366117]
[1752887087762,0.15972,117770.0,117760.0,0.78450117]
[1752887087966,0.15972,117770.0,117760.0,0.90659504]
[1752887088167,0.15972,117770.0,117760.0,1.09406117]
[1752887088368,0.24841,117770.0,117760.0,0.59703504]
[1752887088570,0.15972,117770.0,117760.0,1.09406117]
[1752887090568,0.15972,117770.0,117760.0,0.90659504]
[1752887090763,0.15972,117770.0,117760.0,1.09406117]
[1752887090962,0.22037144,117770.0,117760.0,1.09406117]
[1752887091162,0.24841,117770.0,117760.0,1.09406117]
[1752887091865,0.30906144,117770.0,117760.0,1.09406117]
[1752887092060,0.30906144,117770.0,117760.0,0.90659504]
[1752887092268,0.30906144,117770.0,117760.0,1.09406117]
[1752887092468,0.33981202,117770.0,117760.0,0.90659504]
[1752887092664,0.33981202,117770.0,117760.0,0.78450117]
[1752887092860,0.33981202,117770.0,117760.0,1.09442117]
[1752887093264,0.27916058,117770.0,117760.0,1.09442117]
[1752887094468,0.28016058,117770.0,117760.0,1.09442117]
[1752887094865,0.28016058,117770.0,117760.0,0.90695504]
[1752887095065,0.28016058,117770.0,117760.0,1.09442117]
[1752887095272,0.26151,117770.0,117760.0,0.90695504]
[1752887095470,0.26151,117770.0,117760.0,1.09442117]
[1752887095770,0.32842529,117770.0,117760.0,0.90695504]
[1752887095972,0.32842529,117770.0,117760.0,1.09442117]
[1752887096464,0.43490588,117770.0,117760.0,0.90695504]
[1752887096660,0.5107369,117770.0,117760.0,1.09442117]
[1752887096864,0.40425631,117770.0,117760.0,1.09442117]
[1752887097070,0.40425631,117770.0,117760.0,0.90695504]
[1752887097264,0.40425631,117770.0,117760.0,1.09442117]
[1752887097463,0.30346631,117770.0,117760.0,1.09442117]
[1752887097660,0.27913631,117770.0,117760.0,1.09442117]
[1752887099262,0.20330529,117770.0,117760.0,1.09442117]
[1752887099562,0.27913631,117770.0,117760.0,1.09442117]
[1752887100670,0.30296631,117770.0,117760.0,1.09442117]
[1752887101171,0.22713529,117770.0,117760.0,1.09442117]
[1752887103072,0.31786529,117770.0,117760.0,0.90695504]
[1752887103273,0.39113914,117770.0,117760.0,1.09442117]
[1752887104071,0.39113914,117770.0,117760.0,0.90695504]
[1752887104274,0.39113914,117770.0,117760.0,1.09442117]
[1752887105077,0.39113914,117770.0,117760.0,1.38962117]
[1752887106878,0.39113914,117770.0,117760.0,1.20215504]
[1752887107079,0.39113914,117770.0,117760.0,1.38962117]
[1752887108479,0.33029529,117770.0,117760.0,1.38962117]
[1752887108680,0.40612631,117770.0,117760.0,1.38962117]
[1752887109582,0.33029529,117770.0,117760.0,1.38962117]
[1752887110283,0.40612631,117770.0,117760.0,1.38962117]
[1752887112082,0.40612631,117770.0,117760.0,1.20215504]
[1752887112281,0.40612631,117770.0,117760.0,1.38962117]
[1752887113584,0.46700811,117770.0,117760.0,1.38962117]
[1752887113779,0.02687342,117770.0,117760.0,1.5770873]
[1752887114084,0.13932,117780.0,117770.0,0.1697019]
[1752887114279,0.206931,117780.0,117770.0,0.71796803]
[1752887114579,0.206931,117780.0,117770.0,0.5305019]
[1752887115083,0.230761,117780.0,117770.0,0.71796803]
[1752887115479,0.206931,117780.0,117770.0,0.71796803]
[1752887115683,0.208931,117780.0,117770.0,0.71796803]
[1752887116081,0.09134,117780.0,117770.0,0.90543416]
[1752887116280,0.002,117780.0,117770.0,0.90543416]
[1752887116881,0.18214683,117790.0,117780.0,0.1696875]
[1752887117083,0.18214683,117790.0,117780.0,1.23203899]
[1752887118682,0.18214683,117790.0,117780.0,1.04457286]
[1752887119283,0.28630683,117790.0,117780.0,1.04457286]
[1752887119482,0.35488263,117790.0,117780.0,1.04457286]
[1752887121186,0.35488263,117790.0,117780.0,1.04441286]
[1752887121792,0.35488263,117790.0,117780.0,0.85694673]
[1752887121991,0.35488263,117790.0,117780.0,0.85678673]
[1752887122185,0.35488263,117790.0,117780.0,1.04425286]
[1752887122889,0.35488263,117790.0,117780.0,1.33945286]
[1752887123986,0.41565725,117790.0,117780.0,1.33945286]
[1752887124190,0.39666042,117790.0,117780.0,1.33945286]
[1752887125784,0.39666042,117790.0,117780.0,1.52691899]
[1752887126393,0.29350042,117790.0,117780.0,1.52691899]
[1752887126793,0.21968528,117790.0,117780.0,1.54908899]
[1752887126990,0.12406768,117790.0,117780.0,1.54908899]
[1752887127191,0.04520008,117800.0,117790.0,0.1810736]
[1752887127392,0.04520008,117800.0,117790.0,0.75150973]
[1752887128391,0.0452,117800.0,117790.0,0.75150973]
[1752887128690,0.0462,117800.0,117790.0,0.5640436]
[1752887128895,0.11535075,117800.0,117790.0,0.75150973]
[1752887129098,0.12741,117800.0,117790.0,0.75150973]
[1752887129886,0.19637,117800.0,117790.0,0.5304736]
[1752887130088,0.19637,117800.0,117780.0,0.51631943]
[1752887130089,0.25115,117790.0,117780.0,0.51631943]
[1752887130289,0.25115,117790.0,117780.0,0.99588733]
[1752887130493,0.43861613,117790.0,117780.0,0.99588733]
[1752887130898,0.25115,117790.0,117780.0,0.68600733]
[1752887131098,0.4208236,117790.0,117780.0,0.99592733]
[1752887131300,0.62743533,117790.0,117780.0,0.64558603]
[1752887131503,0.70326635,117790.0,117780.0,0.23096613]
[1752887131693,0.70331636,117790.0,117780.0,0.23096613]
[1752887131893,0.62743533,117790.0,117780.0,0.54104613]
[1752887132089,0.4399692,117790.0,117780.0,0.1716879]
[1752887132394,0.70731385,117790.0,117780.0,0.4808479]
[1752887132688,0.88064772,117790.0,117780.0,0.4808479]
[1752887132888,1.06811385,117790.0,117780.0,0.4808479]
[1752887133092,0.99223533,117790.0,117780.0,0.4808479]
[1752887133699,1.06811546,117790.0,117780.0,0.4808479]
[1752887134895,0.53764186,117790.0,117780.0,0.8416479]
[1752887135100,0.35017573,117790.0,117780.0,1.04051403]
[1752887135299,0.35017573,117790.0,117780.0,0.8530479]
[1752887135503,0.2742956,117790.0,117780.0,1.04051403]
[1752887136201,0.4439692,117790.0,117780.0,1.04051403]
[1752887136398,0.4439692,117790.0,117780.0,0.8530479]
[1752887136701,0.2742956,117790.0,117780.0,0.8530479]
[1752887136900,0.46176173,117790.0,117780.0,0.8530479]
[1752887137495,0.2742956,117790.0,117780.0,0.8530479]
[1752887139100,0.63143533,117790.0,117780.0,0.8530479]
[1752887140905,0.63143533,117790.0,117780.0,0.4922479]
[1752887141108,0.70731546,117790.0,117780.0,0.4922479]
[1752887141503,0.70731546,117790.0,117780.0,0.4808479]
[1752887141705,0.63143533,117790.0,117780.0,0.4808479]
[1752887142908,0.63143533,117790.0,117780.0,0.1706879]
[1752887143105,0.63143533,117790.0,117770.0,0.4649017]
[1752887143106,0.269638,117780.0,117770.0,0.4649017]
[1752887143303,0.420838,117780.0,117770.0,0.7748617]
[1752887143503,0.420838,117780.0,117760.0,0.2121339]
[1752887143504,0.2696524,117770.0,117760.0,0.2121339]
[1752887143703,0.71458367,117770.0,117760.0,0.5222139]
[1752887144410,0.60831853,117770.0,117760.0,0.5222139]
[1752887144611,0.4208524,117770.0,117760.0,0.5222139]
[1752887144809,0.60831853,117770.0,117760.0,0.5222139]
[1752887145011,0.61031853,117770.0,117760.0,0.2121339]
[1752887145212,0.7836524,117770.0,117760.0,0.5220539]
[1752887145410,1.07738367,117770.0,117760.0,0.5220539]
[1752887146812,0.71658367,117770.0,117760.0,0.5220539]
[1752887147012,0.54794702,117770.0,117760.0,0.72092003]
[1752887147207,0.54794702,117770.0,117760.0,0.74309003]
[1752887147406,0.54794702,117770.0,117760.0,0.72092003]
[1752887148513,0.44168188,117770.0,117760.0,0.72092003]
[1752887148908,0.44168188,117770.0,117760.0,0.5335339]
[1752887148909,0.70498034,117770.0,117760.0,0.5335339]
[1752887149309,0.62914801,117770.0,117760.0,0.5335339]
[1752887149804,0.44168188,117770.0,117760.0,0.5335339]
[1752887150007,0.62914801,117770.0,117760.0,0.5335339]
[1752887150408,0.54784715,117770.0,117760.0,0.5335339]
[1752887150619,0.54784715,117770.0,117760.0,0.41100003]
[1752887150820,0.54784715,117770.0,117760.0,0.72104003]
[1752887152210,0.54784715,117770.0,117760.0,0.41100003]
[1752887152415,0.54784715,117770.0,117760.0,0.72104003]
[1752887153215,0.52901767,117770.0,117760.0,0.5335739]
[1752887153415,0.52901767,117770.0,117760.0,0.72104003]
[1752887153615,0.4228524,117770.0,117760.0,0.72104003]
[1752887153915,0.4228524,117770.0,117760.0,0.74321003]
[1752887154320,0.4228524,117770.0,117760.0,0.5557439]
[1752887154514,0.4228524,117770.0,117760.0,0.74321003]
[1752887154709,0.25315,117770.0,117760.0,0.74321003]
[1752887154915,0.12841,117770.0,117760.0,1.10401003]
[1752887155325,0.12841,117770.0,117760.0,1.39921003]
[1752887156318,0.12841,117770.0,117760.0,1.2117439]
[1752887156529,0.12841,117770.0,117760.0,1.39921003]
[1752887158221,0.18904708,117770.0,117760.0,1.39921003]
[1752887158624,0.06263708,117770.0,117760.0,1.39921003]
[1752887158826,0.002,117770.0,117760.0,1.39921003]
[1752887159215,0.19370708,117780.0,117770.0,0.1821524]
[1752887159419,0.19380202,117780.0,117770.0,1.04778853]
[1752887159620,0.25125177,117790.0,117780.0,0.169688]
[1752887159925,0.22801177,117790.0,117780.0,1.25367442]
[1752887160126,0.20886617,117790.0,117780.0,1.06620829]
[1752887160520,0.20886617,117790.0,117780.0,1.22607133]
[1752887160824,0.20886617,117790.0,117780.0,1.0386052]
[1752887161226,0.32188617,117790.0,117780.0,1.0386052]
[1752887161426,0.24609,117790.0,117780.0,1.0386052]
[1752887161725,0.32188617,117790.0,117780.0,0.85113907]
[1752887161923,0.24609,117790.0,117780.0,1.0386052]
[1752887162326,0.24609,117790.0,117780.0,0.85113907]
[1752887162628,0.25009,117790.0,117780.0,1.0396052]
[1752887164225,0.25009,117790.0,117780.0,1.52227133]
[1752887164429,0.31080924,117790.0,117780.0,1.52227133]
[1752887164927,0.31080924,117790.0,117780.0,1.3348052]
[1752887165125,0.31080924,117790.0,117780.0,1.52227133]
[1752887165321,0.19778924,117790.0,117780.0,1.22707133]
[1752887165920,0.19778924,117790.0,117780.0,0.85213907]
[1752887166122,0.44994613,117790.0,117780.0,0.50723907]
[1752887166322,0.51066537,117790.0,117780.0,0.81947907]
[1752887166523,0.68033897,117790.0,117780.0,0.50723907]
[1752887166720,0.68033897,117790.0,117780.0,0.45895907]
[1752887166923,0.68033897,117790.0,117780.0,0.14643907]
[1752887167131,1.04113897,117790.0,117780.0,0.45903907]
[1752887167633,0.98041973,117790.0,117780.0,0.45903907]
[1752887167925,0.98041973,117790.0,117780.0,0.14643907]
[1752887168127,0.98041973,117790.0,117780.0,0.45899907]
[1752887168631,0.7929536,117790.0,117780.0,0.45899907]
[1752887168832,0.98041973,117790.0,117780.0,0.45899907]
[1752887169031,0.7929536,117790.0,117780.0,0.45899907]
[1752887169233,0.98041973,117790.0,117780.0,0.45899907]
[1752887170132,0.7929536,117790.0,117780.0,0.45879907]
[1752887170327,1.0562159,117790.0,117780.0,0.45879907]
[1752887170931,0.98041973,117790.0,117780.0,0.45879907]
[1752887171122,1.0562159,117790.0,117780.0,0.45879907]
[1752887172231,0.86874977,117790.0,117780.0,0.45879907]
[1752887172432,1.0562159,117790.0,117780.0,0.45879907]
[1752887173829,0.86874977,117790.0,117780.0,0.45879907]
[1752887174132,1.0562159,117790.0,117780.0,0.45879907]
[1752887174434,0.86874977,117790.0,117780.0,0.45879907]
[1752887174637,1.0562159,117790.0,117780.0,0.45879907]
[1752887177636,0.86874977,117790.0,117780.0,0.45879907]
[1752887177837,1.0562159,117790.0,117780.0,0.45879907]
[1752887178334,0.98041973,117790.0,117780.0,0.45879907]
[1752887178837,0.98041973,117790.0,117780.0,0.31336]
[1752887179937,0.98041973,117790.0,117780.0,0.4830483]
[1752887180336,1.086585,117790.0,117780.0,0.4830483]
[1752887180839,0.89911887,117790.0,117780.0,0.4830483]
[1752887181034,1.086585,117790.0,117780.0,0.4830483]
[1752887182140,1.086585,117790.0,117780.0,0.31336]
[1752887182335,1.086585,117790.0,117780.0,0.4830483]
[1752887182737,1.086585,117790.0,117780.0,0.31336]
[1752887183340,1.086585,117790.0,117780.0,0.4830483]
[1752887183941,1.086585,117790.0,117780.0,0.31288]
[1752887184338,0.98041973,117790.0,117780.0,0.31288]
[1752887185438,0.98041973,117790.0,117780.0,0.001]
[1752887185644,1.05637949,117790.0,117780.0,0.001]
[1752887185942,1.05637949,117790.0,117780.0,0.1706883]
[1752887186442,1.05637949,117790.0,117780.0,0.001]
[1752887186839,1.05637949,117790.0,117780.0,0.1706883]
[1752887187240,1.05637949,117790.0,117780.0,0.001]
[1752887188740,1.05637949,117790.0,117780.0,0.1706883]
[1752887189843,1.05637949,117790.0,117780.0,0.001]
[1752887191242,1.05637949,117790.0,117780.0,0.1706884]
[1752887192542,0.98041973,117790.0,117780.0,0.1706884]
[1752887192945,0.98041973,117790.0,117780.0,0.001]
[1752887193442,0.98041973,117790.0,117780.0,0.00012077]
[1752887194444,0.7929536,117790.0,117780.0,0.16980917]
[1752887194646,0.98041973,117790.0,117780.0,0.16980917]
[1752887194835,0.61961973,117790.0,117780.0,0.16980917]
[1752887196245,0.26248,117790.0,117780.0,0.76985026]
[1752887196946,0.26248,117790.0,117780.0,0.58226336]
[1752887197144,0.50891009,117790.0,117780.0,0.76972949]
[1752887197537,0.48567009,117790.0,117780.0,0.76972949]
[1752887197945,0.22685,117790.0,117780.0,0.76972949]
[1752887198340,0.13707,117790.0,117780.0,0.76972949]
[1752887198540,0.24353365,117790.0,117780.0,0.95719562]
[1752887198838,0.11046365,117790.0,117780.0,0.95719562]
[1752887199348,0.08001742,117790.0,117780.0,0.58226336]
[1752887199646,0.08001742,117790.0,117780.0,0.95719562]
[1752887199943,0.16771742,117790.0,117780.0,0.95719562]
[1752887200548,0.21589742,117790.0,117780.0,0.95719562]
[1752887202348,0.08001742,117790.0,117780.0,0.95719562]
[1752887202645,0.61598993,117790.0,117780.0,0.54801326]
[1752887202843,0.53498745,117790.0,117780.0,0.54801326]
[1752887203049,0.72245358,117790.0,117780.0,0.54801326]
[1752887203348,0.72227832,117790.0,117780.0,0.54801326]
[1752887203551,0.72227832,117790.0,117780.0,0.56009326]
[1752887203946,0.79819649,117790.0,117780.0,0.56009326]
[1752887204152,0.6919081,117790.0,117780.0,0.49977326]
[1752887205142,0.61598993,117790.0,117780.0,0.49977326]
[1752887205350,0.61598993,117790.0,117780.0,0.33008496]
[1752887205545,0.4285238,117790.0,117780.0,0.01752496]
[1752887205849,0.97678993,117790.0,117780.0,0.49969326]
[1752887206344,0.97678993,117790.0,117780.0,0.4821683]
[1752887207246,1.05270655,117790.0,117780.0,0.4821683]
[1752887207452,0.97678993,117790.0,117780.0,0.4821683]
[1752887207752,1.05270633,117790.0,117780.0,0.4821683]
[1752887209853,0.8652402,117790.0,117780.0,0.4820883]
[1752887210054,1.05270633,117790.0,117780.0,0.4820883]
[1752887210554,1.05270633,117790.0,117780.0,0.1696883]
[1752887210760,0.97678993,117790.0,117780.0,0.4819283]
[1752887210956,0.7893238,117790.0,117780.0,0.31224]
[1752887211154,0.97678993,117790.0,117780.0,0.31224]
[1752887211452,0.1928826,117770.0,117760.0,0.6274445]
[1752887211658,0.63059577,117770.0,117760.0,0.5364954]
[1752887212152,0.63059577,117770.0,117760.0,0.4940683]
[1752887212353,1.06731806,117770.0,117760.0,0.494077]
[1752887212558,0.87985193,117770.0,117760.0,0.494077]
[1752887212758,1.06831806,117770.0,117760.0,0.495077]
[1752887213557,1.06831806,117770.0,117760.0,0.170717]
[1752887213762,1.06831806,117770.0,117760.0,0.482917]
[1752887214267,0.88085193,117770.0,117760.0,0.46898028]
[1752887214458,1.06831806,117770.0,117760.0,0.46898028]
[1752887215553,0.88085193,117770.0,117760.0,0.46898028]
[1752887215751,1.06831806,117770.0,117760.0,0.46898028]
[1752887215953,0.99239577,117770.0,117760.0,0.46898028]
[1752887216364,1.06831806,117770.0,117760.0,0.46898028]
[1752887217159,0.88085193,117770.0,117760.0,0.46898028]
[1752887217359,1.06831806,117770.0,117760.0,0.48083028]
[1752887217559,0.70751806,117770.0,117760.0,0.84163028]
[1752887217759,0.63159577,117770.0,117760.0,0.84163028]
[1752887218464,0.63159577,117770.0,117760.0,0.48083028]
[1752887218762,0.70751806,117770.0,117760.0,0.48083028]
[1752887220867,1.06831806,117770.0,117760.0,0.48083028]
[1752887221168,1.06831806,117770.0,117760.0,0.001]
[1752887222267,1.06831806,117770.0,117760.0,0.00051674]
[1752887222768,0.99239577,117770.0,117760.0,0.00051674]
[1752887223162,1.06823957,117770.0,117760.0,0.00051674]
[1752887223567,0.2693814,117750.0,117740.0,0.8857324]
[1752887223767,0.69295942,117750.0,117740.0,0.8857324]
[1752887223968,0.69295942,117750.0,117740.0,0.8975824]
[1752887224368,0.50549329,117750.0,117740.0,0.91491164]
[1752887224666,0.69295942,117750.0,117740.0,0.91491164]
[1752887224969,0.69395942,117750.0,117740.0,0.91691164]
[1752887225467,0.50649329,117750.0,117740.0,0.91691164]
[1752887225667,0.69395942,117750.0,117740.0,0.91691164]
[1752887226072,0.63328626,117750.0,117740.0,0.91691164]
[1752887228468,0.44582013,117750.0,117740.0,0.91691164]
[1752887228670,0.63328626,117750.0,117740.0,0.91691164]
[1752887230876,0.69395942,117750.0,117740.0,0.91691164]
[1752887231076,0.50649329,117750.0,117740.0,0.91691164]
[1752887231278,0.69395942,117750.0,117740.0,0.91691164]
[1752887232477,0.63328626,117750.0,117740.0,0.91691164]
[1752887232977,0.63328626,117750.0,117740.0,0.87447564]
[1752887233371,0.73957465,117750.0,117740.0,0.51367564]
[1752887233973,0.73957465,117750.0,117740.0,0.87447564]
[1752887234180,0.63328626,117750.0,117740.0,0.51367564]
[1752887235174,0.73957465,117750.0,117740.0,0.51367564]
[1752887235576,0.63328626,117750.0,117740.0,0.4963464]
[1752887236288,0.73957465,117750.0,117740.0,0.4963464]
[1752887237373,0.73957465,117750.0,117740.0,0.47701674]
[1752887237677,0.55210852,117750.0,117740.0,0.47701674]
[1752887237869,0.73957465,117750.0,117740.0,0.47701674]
[1752887238068,0.81538466,117750.0,117740.0,0.47701674]
[1752887238273,0.70909627,117750.0,117740.0,0.47701674]
[1752887238877,0.52163014,117750.0,117740.0,0.47711692]
[1752887239276,0.63328626,117750.0,117740.0,0.47711692]
[1752887240077,0.15270873,117750.0,117740.0,1.23501918]
[1752887240281,0.01966873,117750.0,117740.0,1.04755305]
[1752887240480,0.08033818,117750.0,117740.0,1.04755305]
[1752887241180,0.08033818,117750.0,117740.0,1.34275305]
[1752887243184,0.08033818,117750.0,117740.0,1.15528692]
[1752887243380,0.01966873,117750.0,117740.0,1.34275305]
[1752887246180,0.14639873,117750.0,117740.0,1.02999305]
[1752887246381,0.14639873,117750.0,117740.0,1.34335305]
[1752887250784,0.14639873,117750.0,117740.0,0.98255305]
[1752887250985,0.14639873,117750.0,117740.0,1.70415305]
[1752887251380,0.18739945,117760.0,117740.0,1.55374631]
[1752887251587,0.18739945,117760.0,117750.0,1.25190366]
[1752887251779,0.14530704,117770.0,117760.0,0.169717]
[1752887251983,0.07704705,117770.0,117760.0,0.74675313]
[1752887252184,0.12673,117780.0,117770.0,0.1697026]
[1752887252483,0.12673,117780.0,117770.0,1.32608873]
[1752887253586,0.14972,117790.0,117780.0,0.1696882]
[1752887253779,0.12673,117790.0,117780.0,0.71795433]
[1752887254387,0.12673,117790.0,117780.0,0.90542046]
[1752887254587,0.14972,117790.0,117780.0,0.71795433]
[1752887254790,0.14972,117790.0,117780.0,0.71895433]
[1752887255290,0.15072,117790.0,117780.0,0.71995433]
[1752887255491,0.15072,117790.0,117780.0,0.90742046]
[1752887255689,0.12773,117790.0,117780.0,0.90742046]
[1752887255891,0.12773,117790.0,117780.0,1.20262046]
[1752887256691,0.15072,117790.0,117780.0,1.20262046]
[1752887258692,0.12773,117790.0,117780.0,1.20262046]
[1752887258891,0.08102,117790.0,117780.0,1.20262046]
[1752887259292,0.12773,117790.0,117780.0,1.20262046]
[1752887259692,0.15072,117790.0,117780.0,1.20262046]
[1752887259891,0.15072,117790.0,117780.0,1.01515433]
[1752887260493,0.15072,117790.0,117780.0,1.20262046]
[1752887260793,0.2486,117790.0,117780.0,1.1411682]
[1752887260994,0.2486,117790.0,117780.0,1.32863433]